[Event "December 19 Late 2023"]
[Site "https://www.chess.com"]
[Date "2023.12.19"]
[Round "3"]
[White "Postlmayer, Jakob"]
[Black "Kamsky, Gata"]
[Result "1/2-1/2"]
[Board "45"]
[TimeControl "180+1"]
[WhiteFideId "1643622"]
[BlackFideId "2000024"]
[WhiteElo "2337"]
[BlackElo "2660"]
[WhiteTeam "AUT"]
[BlackTeam "USA"]
[WhiteClock "0:00:18"]
[BlackClock "0:00:08"]

1. c4 {[%clk 0:03:00]}  f5 {[%clk 0:02:55]} 2. Nc3 {[%clk 0:02:58]}  Nf6 {[%clk 0:02:55]} 3. d4 {[%clk 0:02:55]}  e6 {[%clk 0:02:54]} 4. Qc2 {[%clk 0:02:54]}  Bb4 {[%clk 0:02:53]} 5. Bd2 {[%clk 0:02:51]}  a5 {[%clk 0:02:52]} 6. g3 {[%clk 0:02:50]}  Nc6 {[%clk 0:02:51]} 7. Nf3 {[%clk 0:02:50]}  b6 {[%clk 0:02:51]} 8. Bg2 {[%clk 0:02:49]}  Bb7 {[%clk 0:02:50]} 9. O-O {[%clk 0:02:50]}  O-O {[%clk 0:02:47]} 10. a3 {[%clk 0:02:49]}  Bxc3 {[%clk 0:02:47]} 11. Bxc3 {[%clk 0:02:50]}  a4 {[%clk 0:02:41]} 12. Nd2 {[%clk 0:02:48]}  Na5 {[%clk 0:02:24]} 13. f3 {[%clk 0:02:40]}  d5 {[%clk 0:02:16]} 14. cxd5 {[%clk 0:02:33]}  Nxd5 {[%clk 0:02:15]} 15. Qxa4 {[%clk 0:02:26]}  Ne3 {[%clk 0:02:11]} 16. Rf2 {[%clk 0:02:19]}  Nac4 {[%clk 0:02:05]} 17. Qb3 {[%clk 0:02:13]}  Bd5 {[%clk 0:02:05]} 18. Nxc4 {[%clk 0:02:08]}  Bxc4 {[%clk 0:02:04]} 19. Qb4 {[%clk 0:02:08]}  b5 {[%clk 0:01:33]} 20. Rc1 {[%clk 0:01:59]}  f4 {[%clk 0:01:27]} 21. Qc5 {[%clk 0:01:40]}  Rf5 {[%clk 0:01:25]} 22. Qc6 {[%clk 0:01:26]}  Bd5 {[%clk 0:00:54]} 23. Qxb5 {[%clk 0:01:22]}  Nxg2 {[%clk 0:00:51]} 24. Rxg2 {[%clk 0:00:56]}  Bxf3 {[%clk 0:00:51]} 25. Qc4 {[%clk 0:00:56]}  Bd5 {[%clk 0:00:50]} 26. Qd3 {[%clk 0:00:52]}  Bxg2 {[%clk 0:00:50]} 27. Kxg2 {[%clk 0:00:53]}  Qd5+ {[%clk 0:00:48]} 28. Qf3 {[%clk 0:00:53]}  fxg3 {[%clk 0:00:47]} 29. Qxd5 {[%clk 0:00:52]}  Rxd5 {[%clk 0:00:41]} 30. hxg3 {[%clk 0:00:51]}  h5 {[%clk 0:00:33]} 31. Rh1 {[%clk 0:00:46]}  Kf7 {[%clk 0:00:29]} 32. Rh4 {[%clk 0:00:42]}  Kg6 {[%clk 0:00:27]} 33. e4 {[%clk 0:00:38]}  Rb5 {[%clk 0:00:25]} 34. Rf4 {[%clk 0:00:34]}  Rbb8 {[%clk 0:00:20]} 35. Rh4 {[%clk 0:00:25]}  Rf8 {[%clk 0:00:19]} 36. g4 {[%clk 0:00:22]}  hxg4 {[%clk 0:00:17]} 37. Rxg4+ {[%clk 0:00:23]}  Kf7 {[%clk 0:00:17]} 38. d5 {[%clk 0:00:22]}  exd5 {[%clk 0:00:17]} 39. Rxg7+ {[%clk 0:00:21]}  Ke6 {[%clk 0:00:15]} 40. exd5+ {[%clk 0:00:22]}  Kxd5 {[%clk 0:00:15]} 41. Rxc7 {[%clk 0:00:22]}  Rf5 {[%clk 0:00:14]} 42. Rd7+ {[%clk 0:00:20]}  Kc4 {[%clk 0:00:13]} 43. Rd4+ {[%clk 0:00:20]}  Kb3 {[%clk 0:00:14]} 44. Rg4 {[%clk 0:00:20]}  Raf8 {[%clk 0:00:12]} 45. Bd4 {[%clk 0:00:20]}  Rf4 {[%clk 0:00:10]} 46. Rxf4 {[%clk 0:00:19]}  Rxf4 {[%clk 0:00:11]} 47. Bc3 {[%clk 0:00:20]}  Rc4 {[%clk 0:00:10]} 48. Kf3 {[%clk 0:00:19]}  Rc7 {[%clk 0:00:10]} 49. Ke3 {[%clk 0:00:19]}  Rd7 {[%clk 0:00:11]} 50. Ke4 {[%clk 0:00:19]}  Rd8 {[%clk 0:00:11]} 51. Ke5 {[%clk 0:00:19]}  Rd7 {[%clk 0:00:11]} 52. Bd4 {[%clk 0:00:19]}  Rd8 {[%clk 0:00:11]} 53. Bc3 {[%clk 0:00:19]}  Rd7 {[%clk 0:00:11]} 54. Ke4 {[%clk 0:00:19]}  Rd8 {[%clk 0:00:12]} 55. Be5 {[%clk 0:00:19]}  Rd7 {[%clk 0:00:12]} 56. Bd4 {[%clk 0:00:18]}  Kc4 {[%clk 0:00:12]} 57. Bc3 {[%clk 0:00:18]}  Re7+ {[%clk 0:00:12]} 58. Kf5 {[%clk 0:00:19]}  Re8 {[%clk 0:00:13]} 59. Kf6 {[%clk 0:00:19]}  Kb3 {[%clk 0:00:12]} 60. Kf7 {[%clk 0:00:19]}  Re4 {[%clk 0:00:12]} 61. Kf6 {[%clk 0:00:19]}  Re2 {[%clk 0:00:13]} 62. Kf5 {[%clk 0:00:19]}  Re8 {[%clk 0:00:12]} 63. Kf6 {[%clk 0:00:19]}  Re2 {[%clk 0:00:12]} 64. Kf5 {[%clk 0:00:19]}  Re8 {[%clk 0:00:08]} 65. Kf6 {[%clk 0:00:18]} 1/2-1/2

[Event "December 19 Late 2023"]
[Site "https://www.chess.com"]
[Date "2023.12.19"]
[Round "3"]
[White "Gokerkan, Cem Kaan"]
[Black "Ismagilov, Damir"]
[Result "1-0"]
[Board "46"]
[TimeControl "180+1"]
[WhiteFideId "6336760"]
[BlackFideId "34199982"]
[WhiteElo "2365"]
[BlackElo "2131"]
[WhiteTeam "TUR"]
[BlackTeam "RUS"]
[WhiteClock "0:00:04"]
[BlackClock "0:00:00"]

1. e4 {[%clk 0:03:00]}  g6 {[%clk 0:02:56]} 2. d4 {[%clk 0:03:00]}  Bg7 {[%clk 0:02:57]} 3. Nc3 {[%clk 0:03:00]}  d5 {[%clk 0:02:57]} 4. exd5 {[%clk 0:03:00]}  Nf6 {[%clk 0:02:57]} 5. Bc4 {[%clk 0:03:00]}  Nbd7 {[%clk 0:02:56]} 6. Nf3 {[%clk 0:03:00]}  Nb6 {[%clk 0:02:53]} 7. Bb3 {[%clk 0:03:01]}  Nbxd5 {[%clk 0:02:53]} 8. Nxd5 {[%clk 0:03:01]}  Nxd5 {[%clk 0:02:54]} 9. O-O {[%clk 0:03:01]}  O-O {[%clk 0:02:54]} 10. Re1 {[%clk 0:03:01]}  c6 {[%clk 0:02:55]} 11. h3 {[%clk 0:03:00]}  Bf5 {[%clk 0:02:54]} 12. c3 {[%clk 0:02:53]}  Qd6 {[%clk 0:02:53]} 13. Bg5 {[%clk 0:02:45]}  Rfe8 {[%clk 0:02:49]} 14. Ne5 {[%clk 0:02:39]}  Rad8 {[%clk 0:02:36]} 15. Qf3 {[%clk 0:02:39]}  Be6 {[%clk 0:02:22]} 16. Bh4 {[%clk 0:02:28]}  b5 {[%clk 0:02:13]} 17. a4 {[%clk 0:02:24]}  a6 {[%clk 0:02:13]} 18. axb5 {[%clk 0:02:25]}  cxb5 {[%clk 0:02:12]} 19. Nd3 {[%clk 0:02:08]}  Nf4 {[%clk 0:01:48]} 20. Qxf4 {[%clk 0:01:36]}  Qxf4 {[%clk 0:01:45]} 21. Nxf4 {[%clk 0:01:37]}  Bxb3 {[%clk 0:01:45]} 22. Rxa6 {[%clk 0:01:34]}  f6 {[%clk 0:01:39]} 23. Nd3 {[%clk 0:01:30]}  Bc4 {[%clk 0:01:35]} 24. Nb4 {[%clk 0:01:17]}  Kf7 {[%clk 0:01:26]} 25. Bg3 {[%clk 0:01:17]}  Ra8 {[%clk 0:01:18]} 26. Rb6 {[%clk 0:01:13]}  Bf8 {[%clk 0:01:10]} 27. Rb7 {[%clk 0:01:12]}  Kg8 {[%clk 0:01:02]} 28. Nc6 {[%clk 0:01:11]}  e6 {[%clk 0:01:02]} 29. Na7 {[%clk 0:00:53]}  Bd5 {[%clk 0:00:57]} 30. Rc7 {[%clk 0:00:53]}  Bc4 {[%clk 0:00:49]} 31. h4 {[%clk 0:00:49]}  h5 {[%clk 0:00:44]} 32. Re3 {[%clk 0:00:43]}  Bh6 {[%clk 0:00:43]} 33. Rf3 {[%clk 0:00:42]}  Bg7 {[%clk 0:00:32]} 34. Bd6 {[%clk 0:00:42]}  Bd5 {[%clk 0:00:24]} 35. Rg3 {[%clk 0:00:42]}  Kh7 {[%clk 0:00:24]} 36. Bc5 {[%clk 0:00:38]}  Bc4 {[%clk 0:00:21]} 37. Be7 {[%clk 0:00:34]}  Kh6 {[%clk 0:00:18]} 38. Bd6 {[%clk 0:00:33]}  Red8 {[%clk 0:00:17]} 39. Bc5 {[%clk 0:00:31]}  Re8 {[%clk 0:00:15]} 40. Nc6 {[%clk 0:00:29]}  Ra1+ {[%clk 0:00:14]} 41. Kh2 {[%clk 0:00:29]}  e5 {[%clk 0:00:15]} 42. dxe5 {[%clk 0:00:20]}  fxe5 {[%clk 0:00:15]} 43. Ne7 {[%clk 0:00:20]}  Bd3 {[%clk 0:00:16]} 44. Rxd3 {[%clk 0:00:19]}  e4 {[%clk 0:00:16]} 45. Rg3 {[%clk 0:00:14]}  Be5 {[%clk 0:00:16]} 46. Be3+ {[%clk 0:00:10]}  Kh7 {[%clk 0:00:12]} 47. Rd7 {[%clk 0:00:08]}  Bxg3+ {[%clk 0:00:08]} 48. Kxg3 {[%clk 0:00:09]}  Rb1 {[%clk 0:00:08]} 49. b4 {[%clk 0:00:08]}  Rb3 {[%clk 0:00:08]} 50. Nd5+ {[%clk 0:00:09]}  Kh8 {[%clk 0:00:03]} 51. Bd4+ {[%clk 0:00:09]}  Kg8 {[%clk 0:00:04]} 52. Nf6+ {[%clk 0:00:09]}  Kf8 {[%clk 0:00:04]} 53. Nh7+ {[%clk 0:00:05]}  Kg8 {[%clk 0:00:05]} 54. Nf6+ {[%clk 0:00:05]}  Kf8 {[%clk 0:00:05]} 55. Bc5+ {[%clk 0:00:06]}  Re7 {[%clk 0:00:05]} 56. Rxe7 {[%clk 0:00:03]}  Rxc3+ {[%clk 0:00:04]} 57. Kf4 {[%clk 0:00:04]}  Rxc5 {[%clk 0:00:05]} 58. bxc5 {[%clk 0:00:04]}  Kxe7 {[%clk 0:00:02]} 59. Nxe4 {[%clk 0:00:04]}  Ke6 {[%clk 0:00:02]} 60. Kg5 {[%clk 0:00:04]}  Kd5 {[%clk 0:00:02]} 61. Kf4 {[%clk 0:00:04]}  b4 {[%clk 0:00:03]} 62. Ke3 {[%clk 0:00:04]}  b3 {[%clk 0:00:00]} 63. Kd3 {[%clk 0:00:04]} 1-0

[Event "December 19 Late 2023"]
[Site "https://www.chess.com"]
[Date "2023.12.19"]
[Round "3"]
[White "FontVella8"]
[Black "Tifferet, Shakked"]
[Result "1-0"]
[Board "47"]
[TimeControl "180+1"]
[BlackFideId "2811529"]
[WhiteElo "2827"]
[BlackElo "2142"]
[BlackTeam "ISR"]
[WhiteClock "0:00:09"]
[BlackClock "0:00:02"]

1. Nf3 {[%clk 0:03:00]}  Nc6 {[%clk 0:02:43]} 2. d4 {[%clk 0:02:58]}  d5 {[%clk 0:02:42]} 3. Bf4 {[%clk 0:02:58]}  Bf5 {[%clk 0:02:42]} 4. e3 {[%clk 0:02:54]}  e6 {[%clk 0:02:42]} 5. Bd3 {[%clk 0:02:52]}  Bxd3 {[%clk 0:02:41]} 6. Qxd3 {[%clk 0:02:52]}  Bd6 {[%clk 0:02:41]} 7. Bg3 {[%clk 0:02:51]}  Nf6 {[%clk 0:02:39]} 8. Nbd2 {[%clk 0:02:50]}  O-O {[%clk 0:02:39]} 9. O-O {[%clk 0:02:50]}  Re8 {[%clk 0:02:38]} 10. c4 {[%clk 0:02:49]}  dxc4 {[%clk 0:02:21]} 11. Nxc4 {[%clk 0:02:49]}  Bxg3 {[%clk 0:02:20]} 12. hxg3 {[%clk 0:02:49]}  e5 {[%clk 0:02:16]} 13. Qb3 {[%clk 0:02:39]}  exd4 {[%clk 0:02:01]} 14. Rfd1 {[%clk 0:02:27]}  b6 {[%clk 0:01:45]} 15. Rac1 {[%clk 0:02:24]}  Qe7 {[%clk 0:01:26]} 16. exd4 {[%clk 0:02:16]}  Qb4 {[%clk 0:01:25]} 17. Qc2 {[%clk 0:01:56]}  Rad8 {[%clk 0:01:14]} 18. a3 {[%clk 0:01:54]}  Qe7 {[%clk 0:01:06]} 19. Ne3 {[%clk 0:01:48]}  Na5 {[%clk 0:00:26]} 20. b4 {[%clk 0:01:47]}  Nb7 {[%clk 0:00:24]} 21. Qxc7 {[%clk 0:01:47]}  Rd7 {[%clk 0:00:24]} 22. Qf4 {[%clk 0:01:46]}  Nd5 {[%clk 0:00:18]} 23. Nxd5 {[%clk 0:01:42]}  Rxd5 {[%clk 0:00:19]} 24. Re1 {[%clk 0:01:19]}  Qd8 {[%clk 0:00:19]} 25. Rxe8+ {[%clk 0:00:59]}  Qxe8 {[%clk 0:00:19]} 26. Rc7 {[%clk 0:00:53]}  Nd6 {[%clk 0:00:17]} 27. Ne5 {[%clk 0:00:52]}  f6 {[%clk 0:00:15]} 28. Nf3 {[%clk 0:00:43]}  Qe2 {[%clk 0:00:14]} 29. Qg4 {[%clk 0:00:33]}  Rg5 {[%clk 0:00:05]} 30. Rc8+ {[%clk 0:00:23]}  Nxc8 {[%clk 0:00:03]} 31. Qxc8+ {[%clk 0:00:24]}  Kf7 {[%clk 0:00:03]} 32. Nxg5+ {[%clk 0:00:24]}  fxg5 {[%clk 0:00:04]} 33. Qf5+ {[%clk 0:00:24]}  Kg8 {[%clk 0:00:02]} 34. Qd5+ {[%clk 0:00:19]}  Kf8 {[%clk 0:00:02]} 35. Qf5+ {[%clk 0:00:17]}  Kg8 {[%clk 0:00:02]} 36. d5 {[%clk 0:00:09]}  Qe1+ {[%clk 0:00:02]} 37. Kh2 {[%clk 0:00:10]}  Qd2 {[%clk 0:00:02]} 38. Qe6+ {[%clk 0:00:09]}  Kh8 {[%clk 0:00:02]} 39. Qe8# {[%clk 0:00:09]} 1-0

[Event "December 19 Late 2023"]
[Site "https://www.chess.com"]
[Date "2023.12.19"]
[Round "3"]
[White "Rastbod, Ali"]
[Black "Ferreira, Vitor Hugo Vieira"]
[Result "1/2-1/2"]
[Board "48"]
[TimeControl "180+1"]
[WhiteFideId "12567477"]
[BlackFideId "2119765"]
[WhiteElo "2209"]
[BlackElo "2123"]
[WhiteTeam "IRI"]
[BlackTeam "BRA"]
[WhiteClock "0:00:08"]
[BlackClock "0:00:17"]

1. e4 {[%clk 0:02:27]}  c5 {[%clk 0:02:59]} 2. Nf3 {[%clk 0:02:22]}  d6 {[%clk 0:02:59]} 3. Bb5+ {[%clk 0:02:21]}  Nd7 {[%clk 0:02:59]} 4. c4 {[%clk 0:02:19]}  a6 {[%clk 0:02:56]} 5. Ba4 {[%clk 0:02:19]}  Nf6 {[%clk 0:02:53]} 6. Nc3 {[%clk 0:02:20]}  g6 {[%clk 0:02:53]} 7. O-O {[%clk 0:02:20]}  Bg7 {[%clk 0:02:53]} 8. h3 {[%clk 0:02:20]}  O-O {[%clk 0:02:53]} 9. d3 {[%clk 0:02:21]}  b6 {[%clk 0:02:45]} 10. Be3 {[%clk 0:02:19]}  Bb7 {[%clk 0:02:44]} 11. Qd2 {[%clk 0:02:20]}  e6 {[%clk 0:02:39]} 12. Bg5 {[%clk 0:02:15]}  Qc7 {[%clk 0:02:35]} 13. a3 {[%clk 0:02:01]}  Ne5 {[%clk 0:02:36]} 14. Ne1 {[%clk 0:01:50]}  Nc6 {[%clk 0:02:31]} 15. Bxc6 {[%clk 0:01:43]}  Bxc6 {[%clk 0:02:30]} 16. Nc2 {[%clk 0:01:39]}  Rab8 {[%clk 0:02:14]} 17. Bh6 {[%clk 0:01:34]}  Rfe8 {[%clk 0:02:09]} 18. Bxg7 {[%clk 0:01:31]}  Kxg7 {[%clk 0:02:09]} 19. f4 {[%clk 0:01:32]}  d5 {[%clk 0:02:07]} 20. cxd5 {[%clk 0:01:29]}  exd5 {[%clk 0:02:08]} 21. e5 {[%clk 0:01:30]}  Ng8 {[%clk 0:02:03]} 22. d4 {[%clk 0:01:28]}  h5 {[%clk 0:01:47]} 23. f5 {[%clk 0:01:08]}  cxd4 {[%clk 0:01:47]} 24. Nxd4 {[%clk 0:01:06]}  Rxe5 {[%clk 0:01:43]} 25. fxg6 {[%clk 0:01:02]}  fxg6 {[%clk 0:01:42]} 26. Qf4 {[%clk 0:00:43]}  Rbe8 {[%clk 0:01:41]} 27. Nf3 {[%clk 0:00:31]}  R5e7 {[%clk 0:01:36]} 28. Qd4+ {[%clk 0:00:31]}  Kh6 {[%clk 0:01:32]} 29. h4 {[%clk 0:00:21]}  Qd6 {[%clk 0:01:09]} 30. Ng5 {[%clk 0:00:18]}  Qc5 {[%clk 0:01:06]} 31. Rad1 {[%clk 0:00:12]}  Qxd4+ {[%clk 0:01:05]} 32. Rxd4 {[%clk 0:00:13]}  Rd7 {[%clk 0:00:57]} 33. b4 {[%clk 0:00:08]}  Kg7 {[%clk 0:00:57]} 34. a4 {[%clk 0:00:06]}  a5 {[%clk 0:00:55]} 35. b5 {[%clk 0:00:06]}  Bb7 {[%clk 0:00:55]} 36. Rfd1 {[%clk 0:00:06]}  Nf6 {[%clk 0:00:54]} 37. g3 {[%clk 0:00:06]}  Rc7 {[%clk 0:00:52]} 38. R1d3 {[%clk 0:00:05]}  Rec8 {[%clk 0:00:52]} 39. Ne2 {[%clk 0:00:05]}  Rc2 {[%clk 0:00:51]} 40. Nf4 {[%clk 0:00:05]}  Rc1+ {[%clk 0:00:50]} 41. Kf2 {[%clk 0:00:04]}  R8c2+ {[%clk 0:00:51]} 42. Rd2 {[%clk 0:00:05]}  Ng4+ {[%clk 0:00:51]} 43. Ke2 {[%clk 0:00:04]}  Rxd2+ {[%clk 0:00:47]} 44. Kxd2 {[%clk 0:00:04]}  Rg1 {[%clk 0:00:45]} 45. Nxd5 {[%clk 0:00:04]}  Bxd5 {[%clk 0:00:44]} 46. Rxd5 {[%clk 0:00:05]}  Rxg3 {[%clk 0:00:45]} 47. Rd7+ {[%clk 0:00:04]}  Kf8 {[%clk 0:00:45]} 48. Rd6 {[%clk 0:00:03]}  Ne5 {[%clk 0:00:41]} 49. Ke2 {[%clk 0:00:02]}  Rg4 {[%clk 0:00:39]} 50. Rf6+ {[%clk 0:00:02]}  Kg7 {[%clk 0:00:36]} 51. Rxb6 {[%clk 0:00:03]}  Rxh4 {[%clk 0:00:33]} 52. Re6 {[%clk 0:00:03]}  Nc4 {[%clk 0:00:25]} 53. b6 {[%clk 0:00:03]}  Rh2+ {[%clk 0:00:25]} 54. Kd3 {[%clk 0:00:04]}  Nb2+ {[%clk 0:00:23]} 55. Kd4 {[%clk 0:00:04]}  Nxa4 {[%clk 0:00:22]} 56. b7 {[%clk 0:00:04]}  Rb2 {[%clk 0:00:22]} 57. Re7+ {[%clk 0:00:04]}  Kf6 {[%clk 0:00:20]} 58. Re8 {[%clk 0:00:04]}  Kxg5 {[%clk 0:00:20]} 59. b8=Q {[%clk 0:00:04]}  Rxb8 {[%clk 0:00:19]} 60. Rxb8 {[%clk 0:00:05]}  h4 {[%clk 0:00:20]} 61. Ra8 {[%clk 0:00:05]}  h3 {[%clk 0:00:17]} 62. Rxa5+ {[%clk 0:00:05]}  Kg4 {[%clk 0:00:17]} 63. Rxa4 {[%clk 0:00:05]}  h2 {[%clk 0:00:16]} 64. Ke5+ {[%clk 0:00:05]}  Kg3 {[%clk 0:00:16]} 65. Ra3+ {[%clk 0:00:05]}  Kg2 {[%clk 0:00:16]} 66. Ra2+ {[%clk 0:00:06]}  Kg3 {[%clk 0:00:16]} 67. Rxh2 {[%clk 0:00:06]}  Kxh2 {[%clk 0:00:16]} 68. Kf4 {[%clk 0:00:07]}  Kh3 {[%clk 0:00:16]} 69. Kg5 {[%clk 0:00:07]}  Kg3 {[%clk 0:00:17]} 70. Kxg6 {[%clk 0:00:08]} 1/2-1/2

[Event "December 19 Late 2023"]
[Site "https://www.chess.com"]
[Date "2023.12.19"]
[Round "3"]
[White "Gubajdullin, Alexei"]
[Black "Szyszylo, Rafal"]
[Result "1-0"]
[Board "52"]
[TimeControl "180+1"]
[WhiteFideId "4141202"]
[BlackFideId "1109626"]
[WhiteElo "2274"]
[BlackElo "1951"]
[WhiteTeam "RUS"]
[BlackTeam "POL"]
[WhiteClock "0:00:42"]
[BlackClock "0:00:00"]

1. e4 {[%clk 0:03:00]}  g6 {[%clk 0:02:59]} 2. d4 {[%clk 0:02:59]}  d6 {[%clk 0:03:00]} 3. Nc3 {[%clk 0:02:59]}  Bg7 {[%clk 0:03:00]} 4. Be3 {[%clk 0:02:59]}  c6 {[%clk 0:02:59]} 5. Qd2 {[%clk 0:02:59]}  b5 {[%clk 0:02:59]} 6. h4 {[%clk 0:02:57]}  h5 {[%clk 0:02:59]} 7. Nh3 {[%clk 0:02:57]}  Bxh3 {[%clk 0:02:53]} 8. Rxh3 {[%clk 0:02:56]}  Nd7 {[%clk 0:02:53]} 9. f4 {[%clk 0:02:52]}  Ngf6 {[%clk 0:02:51]} 10. Bd3 {[%clk 0:02:51]}  Ng4 {[%clk 0:02:51]} 11. f5 {[%clk 0:02:44]}  Nxe3 {[%clk 0:02:50]} 12. Qxe3 {[%clk 0:02:44]}  Qb6 {[%clk 0:02:49]} 13. Ne2 {[%clk 0:02:44]}  c5 {[%clk 0:02:41]} 14. fxg6 {[%clk 0:02:31]}  fxg6 {[%clk 0:02:33]} 15. Qg5 {[%clk 0:02:31]}  Nf8 {[%clk 0:02:28]} 16. e5 {[%clk 0:02:29]}  dxe5 {[%clk 0:02:24]} 17. dxc5 {[%clk 0:02:25]}  Qc6 {[%clk 0:02:16]} 18. Nc3 {[%clk 0:02:14]}  Bh6 {[%clk 0:02:09]} 19. Qxe5 {[%clk 0:02:06]}  Qxg2 {[%clk 0:02:04]} 20. Bxb5+ {[%clk 0:01:43]}  Kf7 {[%clk 0:02:01]} 21. Qd5+ {[%clk 0:01:29]}  Qxd5 {[%clk 0:02:01]} 22. Nxd5 {[%clk 0:01:29]}  Rc8 {[%clk 0:01:50]} 23. Rf3+ {[%clk 0:01:27]}  Kg7 {[%clk 0:01:49]} 24. b4 {[%clk 0:01:27]}  Ne6 {[%clk 0:01:28]} 25. Bd7 {[%clk 0:01:21]}  Nd4 {[%clk 0:01:28]} 26. Bxc8 {[%clk 0:01:21]}  Nxf3+ {[%clk 0:01:23]} 27. Kf2 {[%clk 0:01:21]}  Nxh4 {[%clk 0:01:21]} 28. Bd7 {[%clk 0:01:10]}  Rf8+ {[%clk 0:01:10]} 29. Ke2 {[%clk 0:01:10]}  Nf3 {[%clk 0:01:09]} 30. c6 {[%clk 0:01:06]}  Nd4+ {[%clk 0:01:07]} 31. Kd3 {[%clk 0:01:06]}  Nb5 {[%clk 0:01:07]} 32. c7 {[%clk 0:01:04]}  Nd6 {[%clk 0:01:06]} 33. Nxe7 {[%clk 0:01:02]}  Rf3+ {[%clk 0:00:56]} 34. Kd4 {[%clk 0:00:57]}  Bg5 {[%clk 0:00:52]} 35. Re1 {[%clk 0:00:54]}  Rf7 {[%clk 0:00:23]} 36. Kd5 {[%clk 0:00:48]}  Bf4 {[%clk 0:00:06]} 37. c4 {[%clk 0:00:43]}  Nf5 {[%clk 0:00:00]} 38. Bxf5 {[%clk 0:00:42]} 1-0

[Event "December 19 Late 2023"]
[Site "https://www.chess.com"]
[Date "2023.12.19"]
[Round "3"]
[White "Bortnyk, Mykola"]
[Black "Mazzilli, Piero"]
[Result "1-0"]
[Board "54"]
[TimeControl "180+1"]
[WhiteFideId "14120836"]
[BlackFideId "807087"]
[WhiteElo "2592"]
[BlackElo "2313"]
[WhiteTeam "UKR"]
[BlackTeam "ITA"]
[WhiteClock "0:00:09"]
[BlackClock "0:00:00"]

1. e4 {[%clk 0:03:00]}  c5 {[%clk 0:02:59]} 2. Nf3 {[%clk 0:02:59]}  d6 {[%clk 0:03:00]} 3. d4 {[%clk 0:02:59]}  cxd4 {[%clk 0:03:00]} 4. Nxd4 {[%clk 0:03:00]}  Nf6 {[%clk 0:03:01]} 5. Nc3 {[%clk 0:03:01]}  a6 {[%clk 0:03:01]} 6. Bg5 {[%clk 0:03:02]}  e6 {[%clk 0:03:01]} 7. f4 {[%clk 0:03:02]}  Be7 {[%clk 0:02:56]} 8. Qf3 {[%clk 0:03:02]}  h6 {[%clk 0:02:53]} 9. Bxf6 {[%clk 0:02:58]}  Bxf6 {[%clk 0:02:51]} 10. O-O-O {[%clk 0:02:58]}  Qb6 {[%clk 0:02:42]} 11. Nb3 {[%clk 0:02:45]}  Be7 {[%clk 0:02:32]} 12. g4 {[%clk 0:02:41]}  Bd7 {[%clk 0:02:25]} 13. h4 {[%clk 0:02:39]}  Nc6 {[%clk 0:02:25]} 14. g5 {[%clk 0:02:21]}  O-O-O {[%clk 0:02:21]} 15. Bh3 {[%clk 0:02:15]}  hxg5 {[%clk 0:02:12]} 16. hxg5 {[%clk 0:02:15]}  g6 {[%clk 0:02:07]} 17. Kb1 {[%clk 0:02:07]}  Kb8 {[%clk 0:01:59]} 18. f5 {[%clk 0:01:50]}  Ne5 {[%clk 0:00:40]} 19. Qg3 {[%clk 0:01:50]}  gxf5 {[%clk 0:00:36]} 20. exf5 {[%clk 0:01:49]}  Bc6 {[%clk 0:00:35]} 21. f6 {[%clk 0:01:37]}  Bxf6 {[%clk 0:00:23]} 22. gxf6 {[%clk 0:01:35]}  Bxh1 {[%clk 0:00:24]} 23. Rxh1 {[%clk 0:01:35]}  Rdg8 {[%clk 0:00:24]} 24. Qe1 {[%clk 0:01:31]}  Rxh3 {[%clk 0:00:20]} 25. Rxh3 {[%clk 0:01:14]}  Rg1 {[%clk 0:00:19]} 26. Qxg1 {[%clk 0:01:02]}  Qxg1+ {[%clk 0:00:20]} 27. Nc1 {[%clk 0:01:03]}  Qg6 {[%clk 0:00:18]} 28. a4 {[%clk 0:00:57]}  Qxf6 {[%clk 0:00:18]} 29. a5 {[%clk 0:00:58]}  Qe7 {[%clk 0:00:18]} 30. Rh8+ {[%clk 0:00:58]}  Ka7 {[%clk 0:00:19]} 31. Na4 {[%clk 0:00:58]}  Nd7 {[%clk 0:00:19]} 32. Nd3 {[%clk 0:00:56]}  e5 {[%clk 0:00:19]} 33. Nb4 {[%clk 0:00:55]}  Qe6 {[%clk 0:00:18]} 34. Rc8 {[%clk 0:00:50]}  e4 {[%clk 0:00:18]} 35. c4 {[%clk 0:00:38]}  e3 {[%clk 0:00:18]} 36. Nd5 {[%clk 0:00:20]}  e2 {[%clk 0:00:17]} 37. Ka2 {[%clk 0:00:19]}  e1=Q {[%clk 0:00:17]} 38. Ndb6 {[%clk 0:00:19]}  Qxc4+ {[%clk 0:00:09]} 39. Nxc4 {[%clk 0:00:17]}  Qb4 {[%clk 0:00:09]} 40. Nab6 {[%clk 0:00:15]}  Nb8 {[%clk 0:00:04]} 41. b3 {[%clk 0:00:16]}  Qc3 {[%clk 0:00:03]} 42. Na4 {[%clk 0:00:10]}  Qc2+ {[%clk 0:00:03]} 43. Nab2 {[%clk 0:00:11]}  d5 {[%clk 0:00:04]} 44. Nb6 {[%clk 0:00:11]}  Qe4 {[%clk 0:00:03]} 45. Rd8 {[%clk 0:00:10]}  Qe5 {[%clk 0:00:02]} 46. Nc8+ {[%clk 0:00:08]}  Ka8 {[%clk 0:00:00]} 47. Na4 {[%clk 0:00:09]} 1-0

[Event "December 19 Late 2023"]
[Site "https://www.chess.com"]
[Date "2023.12.19"]
[Round "3"]
[White "GoldenShare"]
[Black "Makarian, Rudik"]
[Result "0-1"]
[Board "55"]
[TimeControl "180+1"]
[BlackFideId "44105681"]
[WhiteElo "2504"]
[BlackElo "2540"]
[BlackTeam "FID"]
[WhiteClock "0:00:41"]
[BlackClock "0:00:34"]

1. e4 {[%clk 0:02:55]}  e6 {[%clk 0:03:00]} 2. d4 {[%clk 0:02:54]}  d6 {[%clk 0:03:00]} 3. Nd2 {[%clk 0:02:55]}  b6 {[%clk 0:02:59]} 4. Bd3 {[%clk 0:02:55]}  Bb7 {[%clk 0:03:00]} 5. Ngf3 {[%clk 0:02:56]}  g6 {[%clk 0:03:00]} 6. h4 {[%clk 0:02:54]}  h6 {[%clk 0:02:59]} 7. Nf1 {[%clk 0:02:54]}  Bg7 {[%clk 0:02:59]} 8. Ng3 {[%clk 0:02:53]}  Nd7 {[%clk 0:02:59]} 9. Qe2 {[%clk 0:02:52]}  Ne7 {[%clk 0:02:59]} 10. c3 {[%clk 0:02:51]}  a6 {[%clk 0:02:57]} 11. Bd2 {[%clk 0:02:48]}  c5 {[%clk 0:02:53]} 12. e5 {[%clk 0:02:40]}  dxe5 {[%clk 0:02:40]} 13. dxe5 {[%clk 0:02:37]}  Bxf3 {[%clk 0:02:39]} 14. gxf3 {[%clk 0:02:31]}  Nxe5 {[%clk 0:02:38]} 15. Be4 {[%clk 0:02:31]}  N5c6 {[%clk 0:02:37]} 16. O-O-O {[%clk 0:02:27]}  Qc7 {[%clk 0:02:35]} 17. f4 {[%clk 0:02:19]}  h5 {[%clk 0:02:31]} 18. Rhe1 {[%clk 0:02:12]}  b5 {[%clk 0:02:01]} 19. Be3 {[%clk 0:02:04]}  b4 {[%clk 0:01:46]} 20. Bxc5 {[%clk 0:02:02]}  bxc3 {[%clk 0:01:47]} 21. b3 {[%clk 0:02:02]}  O-O {[%clk 0:01:37]} 22. Nxh5 {[%clk 0:02:02]}  gxh5 {[%clk 0:01:26]} 23. Qxh5 {[%clk 0:02:03]}  f5 {[%clk 0:01:25]} 24. Rg1 {[%clk 0:01:44]}  Rf7 {[%clk 0:01:19]} 25. Bxc6 {[%clk 0:01:17]}  Nxc6 {[%clk 0:01:13]} 26. Rg6 {[%clk 0:01:02]}  Qa5 {[%clk 0:00:36]} 27. Bd6 {[%clk 0:00:41]}  Qxa2 {[%clk 0:00:34]} 0-1